Cogmind - Beta 15 @@@ ROGUE MODE // 2025.07.01 @ 19:05:06 Player: LameThyst Result: Destroyed by as-86462 with Assembled Heavy Rifle Performance ------------- Evolutions (0) 0 Regions Visited (2) 400 Robots Destroyed (9) 45 Value Destroyed (150) 150 Prototype IDs (0) 0 Alien Tech Used (0) 0 Bonus (0) 0 TOTAL SCORE: 595 Bonus ------- None Cogmind --------- Core Integrity 0/250 Matter 269/300 Energy 99/100 System Corruption 0% Temperature Cool (0) Movement Walking (120) Location -10/Mines Parts ------- > --- POWER (1) -------- (None) > --- PROPULSION (2) --- Aluminum Leg Aluminum Leg > --- UTILITY (2) ------ Small Storage Unit > --- WEAPON (2) ------- Light Assault Rifle > --- INVENTORY (8) ---- Light Ion Engine Aluminum Leg Aluminum Leg Medium Matter Pod (0) EM Pulse Gun Small Laser Light Assault Rifle Hammer Peak State ------------ > --- POWER ------------ Ion Engine > --- PROPULSION ------- Aluminum Leg Aluminum Leg > --- UTILITY ---------- Small Storage Unit > --- WEAPON ----------- Light Assault Rifle Light Assault Rifle > --- INVENTORY -------- Light Ion Engine Light Treads Light Treads EM Pulse Gun [Rating: 6] Favorites ----------- Power Ion Engine Engine Ion Engine Propulsion Aluminum Leg Leg Aluminum Leg Utility Small Storage Unit Storage Small Storage Unit Weapon Light Assault Rifle Energy Gun Small Laser Ballistic Gun Light Assault Rifle Launcher Grenade Launcher Impact Weapon Hammer Build | -11 -10 -10 ------- Run | Yrd Mat Min Slots Evolved . | . . . Power . | . . . Propulsion . | . . . Utility . | . . . Weapon . | . . . Parts Attached 12 | 7 5 . Power 2 | 2 . . Engine 2 | 2 . . Core . | . . . Reactor . | . . . Propulsion 3 | 2 1 . Treads . | . . . Leg 3 | 2 1 . Wheel . | . . . Hover . | . . . Flight . | . . . Utility 1 | 1 . . Device . | . . . Storage 1 | 1 . . Processor . | . . . Hackware . | . . . Protection . | . . . Artifact . | . . . Weapon 6 | 2 4 . Energy Gun 1 | . 1 . Energy Cannon . | . . . Ballistic Gun 3 | 2 1 . Ballistic Cannon . | . . . Launcher 1 | . 1 . Special Weapon . | . . . Impact Weapon 1 | . 1 . Slashing Weapon . | . . . Piercing Weapon . | . . . Special Melee Weapon . | . . . Unidentified Prototypes . | . . . Parts Lost 3 | . 1 2 Power 1 | . . 1 Propulsion . | . . . Utility . | . . . Weapon 2 | . 1 1 Highest Loss Streak 2 | . 1 2 To Critical Strikes . | . . . Average Backups 5 | 2 6 8 Power . | . 1 1 Propulsion 2 | 1 2 2 Utility . | . . 1 Weapon 2 | . 2 4 Tool/Special . | . . . Unused Backups 4 | . 2 2 Power . | . . . Propulsion 3 | . 2 1 Utility . | . . . Weapon 1 | . . 1 Tool/Special . | . . . Average Slot Usage (%) 82 | . 83 75 Engine 13 | . 14 9 Leg 28 | . 28 28 Storage 14 | . 14 14 Ballistic Gun 23 | . 23 23 Impact Weapon 1 | . 1 . Peak Build Rating 6 | 6 6 6 Average Rating 5 | 4 5 5 On Entrance 4 | . 6 6 Naked Turns . | . . . Heaviest Build 13 | 12 13 6 Greatest Support 20 | 20 20 20 Greatest Overweight (x) . | . . . Average Overweight (x) . | . . . Largest Inventory Capacity 8 | 8 8 8 Average Capacity 7 | 6 8 8 Most Carried 8 | 4 8 8 Average Carried 5 | 2 6 8 Final Capacity 8 | 8 8 8 Final Carried 8 | 4 8 8 Class Distribution -------------------- 100% | Mutant Dominant Class ---------------- Mutant | -10/Materials Mutant | -10/Mines Resources | -11 -10 -10 ----------- Run | Yrd Mat Min Matter Collected 370 | 208 162 . Remotely . | . . . Salvage Created 196 | . 196 . Parts 17 | . 17 . Haulers Intercepted 1 | . 1 . Recyclers Shooed . | . . . Parts Field Recycled . | . . . Retrieved Matter . | . . . Parts Self-Destructed . | . . . Prevented . | . . . Kills | -11 -10 -10 ------- Run | Yrd Mat Min Combat Hostiles Destroyed 8 | . 8 . Guns 4 | . 4 . AOE 4 | . 4 . Classes Destroyed 3 | . 3 . Hauler 1 | . 1 . Swarmer 6 | . 6 . Grunt 2 | . 2 . Best Kill Streak 7 | . 7 . Combat Bots Only 7 | . 7 . Max Kills in Single Turn 3 | . 3 . Gunslinging . | . . . Exploded 3 | . 3 . Melee . | . . . Uniques/NPCs Destroyed . | . . . Combat | -11 -10 -10 -------- Run | Yrd Mat Min Hostile Shots Fired 52 | . 39 13 Missed 10 | . 7 3 Hits 42 | . 32 10 Projectile 42 | . 32 10 AOE 6 | . . 6 Damage Taken 691 | . 338 353 Core 250 | . 98 152 Absorbed by Shields . | . . . Core Remaining (%) 100 | 100 . . Volleys Fired 27 | . 20 7 Largest 2 | . 2 2 Hottest 50 | . 50 50 Shots Fired 48 | . 36 12 Gun 46 | . 35 11 Cannon . | . . . Launcher 2 | . 1 1 Special . | . . . Kinetic 46 | . 35 11 Thermal . | . . . Explosive 2 | . 1 1 Electromagnetic . | . . . Robot Hit Streak 9 | . 9 3 Robot Miss Streak 5 | . 5 1 Penetration Max . | . . . Secondary Targets . | . . . Shots Hit Robots 30 | . 23 7 Core Hits 15 | . 13 2 Critical Kills . | . . . Critical Parts Destroyed 2 | . 2 . Critical Strikes 2 | . 2 . Destroy 1 | . 1 . Smash 1 | . 1 . Melee Attacks 1 | . 1 . Impact 1 | . 1 . Slashing . | . . . Piercing . | . . . Sneak Attacks 1 | . 1 . Combat Hostiles . | . . . Follow-up Attacks . | . . . Damage Inflicted 526 | . 462 64 Guns 263 | . 206 57 Cannons . | . . . Explosions 191 | . 184 7 Melee 72 | . 72 . Ramming . | . . . Kinetic 263 | . 206 57 Thermal . | . . . Explosive 191 | . 184 7 Electromagnetic . | . . . Impact 72 | . 72 . Slashing . | . . . Piercing . | . . . Highest Corruption . | . . . Average Corruption . | . . . Corruption Purged . | . . . Corruption Blocked . | . . . Overload Shots . | . . . Overflow Damage 89 | . 89 . Projectiles . | . . . Explosions 17 | . 17 . Melee 72 | . 72 . Knockbacks . | . . . Impact . | . . . Kinetic . | . . . Secondary . | . . . Self-Inflicted Damage 22 | . 22 . Shots 1 | . 1 . Rammed . | . . . Targets Rammed . | . . . Kicked . | . . . Crushed . | . . . Highest Temperature 22 | . 22 9 Average Temperature 9 | . 9 7 Received Heat Transfer 177 | . 138 39 Siege Activations . | . . . Martial Activations . | . . . Shielding Activations . | . . . Robots Disrupted . | . . . Combat Hostiles . | . . . Robots Corrupted 1 | . 1 . Combat Hostiles . | . . . Parts Fried 1 | . 1 . Impact Corruptions 2 | . 2 . Robots Melted . | . . . Combat Hostiles . | . . . Parts Melted . | . . . Heat Transferred . | . . . Parts Sabotaged . | . . . Parts Stolen . | . . . Parts Stripped . | . . . Power Chain Reactions . | . . . Alert | -11 -10 -10 ------- Run | Yrd Mat Min Maximum Alert Level 1 | . 1 . Low Security (%) 74 | 100 66 100 Level 1 25 | . 33 . Level 2 . | . . . Level 3 . | . . . Level 4 . | . . . Level 5 . | . . . High Security . | . . . Max Security . | . . . Peak Influence 221 | . 221 78 Initial 70 | . . 70 Average 94 | . 120 64 Influence Increases 276 | . 268 8 Destroy 0b10 Robot/C 160 | . 160 . Destroy 0b10 Robot/NC 5 | . 5 . Destroy Leader 32 | . 32 . Disable Machine 30 | . 30 . Destroy Structure 49 | . 41 8 Influence Decreases 228 | . 87 141 Entered New Map 111 | . . 111 Time Decay 87 | . 77 10 Lost Part 30 | . 10 20 Squads Dispatched 2 | . 2 . Investigation . | . . . Extermination . | . . . Reinforcement 2 | . 2 . Assault . | . . . Garrison . | . . . Intercept . | . . . Searches Triggered . | . . . Construction Impeded . | . . . Haulers Reinforced . | . . . Active Scanning Responses . | . . . Cargo Convoy Interrupts . | . . . Stealth | -11 -10 -10 --------- Run | Yrd Mat Min Distress Signals 1 | . 1 . Communications Jammed . | . . . Distress Signals . | . . . Times Spotted 22 | . 12 10 Peak Tracking Total 13 | . 9 13 Tactical Retreats . | . . . Traps | -11 -10 -10 ------- Run | Yrd Mat Min Traps Triggered . | . . . Indirectly . | . . . Trap Hack Attempts . | . . . Triggered . | . . . Disarmed . | . . . Reprogrammed . | . . . Reused . | . . . Traps Extracted . | . . . Installed . | . . . Triggered . | . . . Machines | -11 -10 -10 ---------- Run | Yrd Mat Min Machines Disabled 2 | . 2 . Max in Single Turn 1 | . 1 . Machines Repaired . | . . . Machines Dismantled . | . . . Machines Sabotaged . | . . . Overloaded Fab Kills . | . . . Hacking | -11 -10 -10 --------- Run | Yrd Mat Min Machines Accessed . | . . . Terminals . | . . . Fabricators . | . . . Repair Stations . | . . . Recycling Units . | . . . Scanalyzers . | . . . Garrison Access . | . . . Total Hacks . | . . . Successful . | . . . Failed . | . . . Catastrophic . | . . . Database Lockouts . | . . . Manual . | . . . Terminals . | . . . Fabricators . | . . . Repair Stations . | . . . Recycling Units . | . . . Scanalyzers . | . . . Garrison Access . | . . . Terminal Hacks . | . . . Fabricator Hacks . | . . . Repair Station Hacks . | . . . Recycling Unit Hacks . | . . . Scanalyzer . | . . . Garrison Access Hacks . | . . . Unauthorized Hacks . | . . . Terminals . | . . . Fabricators . | . . . Repair Stations . | . . . Recycling Units . | . . . Scanalyzers . | . . . Garrison Access . | . . . Data Cores Recovered . | . . . Used . | . . . Hacking Detections . | . . . Full Trace Events . | . . . Feedback Events . | . . . Feedback Blocked . | . . . Robot Schematics Acquired . | . . . Robots Built . | . . . Authchips . | . . . Time . | . . . Total Robot Build Rating . | . . . Part Schematics Acquired . | . . . Parts Built . | . . . Authchips . | . . . Time . | . . . Total Part Build Rating . | . . . Parts Repaired . | . . . Time . | . . . Parts Recycled . | . . . Recycled Matter . | . . . Retrieved Matter . | . . . Retrieved Components . | . . . Parts Scanalyzed . | . . . Part Schematics Acquired . | . . . Parts Damaged . | . . . Bothacking | -11 -10 -10 ------------ Run | Yrd Mat Min Used RIF Installer . | . . . Robots Hacked . | . . . Non-combat . | . . . Combat . | . . . Robot Hacks Applied . | . . . Relay Couplers Released . | . . . Fabnet Peak Effective % . | . . . Robots Rewired . | . . . Allies Hacked . | . . . Hacks Repelled . | . . . Allies | -11 -10 -10 -------- Run | Yrd Mat Min Total Allies . | . . . Largest Group . | . . . Highest-Rated Group . | . . . Highest-Rated Ally . | . . . Total Orders . | . . . Ally Attacks . | . . . Total Damage . | . . . Kills . | . . . Allies Corrupted . | . . . Allies Melted . | . . . Intel | -11 -10 -10 ------- Run | Yrd Mat Min Active Infowar (turns) . | . . . Robot Analysis Total . | . . . Derelict Logs Recovered . | . . . Drone Launches . | . . . Drone Recoveries . | . . . Exploration | -11 -10 -10 ------------- Run | Yrd Mat Min Turns Passed 287 | 51 214 22 Spaces Moved 159 | 35 120 4 Core 6 | 6 . . Treads . | . . . Legs 153 | 29 120 4 Wheels . | . . . Hover . | . . . Flight . | . . . Fastest Speed 50 | 50 120 120 Average Speed 117 | 108 120 120 Slowest Speed 120 | 120 120 120 Overloaded Moves . | . . . Propulsion Burnouts . | . . . Robots Hopped . | . . . Potential Cave-ins . | . . . Cave-ins Triggered . | . . . Exploration Rate (%) 14 | 3 32 8 Regions Visited 2 Branch Regions 1 Pre-discovered Areas . | . . . Known Exits Taken . | . . . Unknown Exits Taken 2 | 1 1 . Scrap Searched . | . . . Spaces Dug . | . . . Terrain Destroyed 57 | . 49 8 Melee . | . . . Projectile . | . . . AOE 57 | . 49 8 Terrain Rammed . | . . . Walls Destroyed . | . . . Machines Disabled . | . . . Actions | -11 -10 -10 --------- Run | Yrd Mat Min Total 212 | 44 156 12 Wait 1 | . 1 . Move 157 | 34 119 4 Hop . | . . . Pick Up 9 | 3 6 . Fast Attach 7 | 6 1 . Attach . | . . . Detach . | . . . Swap 8 | 1 6 1 Drop 2 | . 2 . Fire 27 | . 20 7 Melee 1 | . 1 . Ram . | . . . Kick . | . . . Crush . | . . . Escape Stasis . | . . . Rewire . | . . . Trap . | . . . Miscellaneous . | . . . Route ------- -11/Scrapyard -10/Materials -10/Mines (discovered 1 exit: [*Mat]) History --------- Turn | Location | Event 7 | -11/Scrapyard | Discovered new exit (range 15) 52 | -11/Scrapyard | Entered Materials 183 | -10/Materials | Destroyed 7 combat bots 247 | -10/Materials | Discovered new exit (range 10) 266 | -10/Materials | Entered Mines 267 | -10/Mines | Assembled infested the area 272 | -10/Mines | Assisted by a Guerilla fighting off Assembled 277 | -10/Mines | Core integrity fell below 50% 281 | -10/Mines | Core integrity fell below 20% 284 | -10/Mines | Discovered new exit (range 9) 288 | -10/Mines | Destroyed by as-86462 with Assembled Heavy Rifle Last Messages --------------- 00276_ C-30 ARC bursts open, deploying its payload. 00276_ D-53 Grenadier unfolds itself. 00276_ K-01 Serf cleans the Laser Drill. 00277_ HV Slug penetrates Laser Drill. 00277_ Laser Drill disabled. 00277_ K-01 Serf suffers critical hit (Destroy). 00277_ K-01 Serf destroyed. 00277_ G-47 Trooper destroyed. 00279_ Grenade Launcher destroyed. 00279_ Ion Engine destroyed. 00281_ HV Slug penetrates Wall. 00282_ The unstable cave ceiling collapses. 00284_ EXIT=FOUND 00284_ K-01 Serf collects debris. 00285_ X3-K66(h) destroyed. 00285_ as-96681 destroyed. 00286_ The unstable cave ceiling collapses. 00288_ K-01 Serf collects debris. 00288_ U-05 Engineer builds a Wall. Map ----- +----------------------------------------------------+ | | | | | | | | | | | | | | | | | | | | | | | | | | | | | | | | | ?????????????????????????????????????????????????? | | ?????????????????????????????????????????????????? | | ???????????????????????????????######????????????? | | ??????????????????????????????? ?????????????? | | ?????????????????????????????? ??????????????? | | ?????????????# ?????????????? #??????????????? | | ?????????????# %%="??######??? ##?????????????? | | ?????????????# * # ##?? "#?????????????? | | ?????????????# r # ### "#?????????????? | | ?????????????# k u d @ # #??????????????? | | ?????????????# k # a #???????????????? | | ?????????????????????# ##??????????????? | | ?????????????????????## a %# #??????????????? | | ??????????????????????### % #??????????????? | | ???????????????????# d #??????????????? | | ???????????????? % # #??????????????? | | ???????????????# ### #??????????????? | | ???????????????????#### ##??????????????? | | ??????????????????????### ##???????????????? | | ????????????????????????## ##????????????????? | | ?????????????????????????## ###?????????????????? | | ??????????????????????????## #???????????????????? | | ???????????????????????????# #???????????????????? | | ???????????????????????????# #???????????????????? | | ??????????????????????????? #???????????????????? | | ???????????????????????????##????????????????????? | | ?????????????????????????????????????????????????? | | ?????????????????????????????????????????????????? | | ?????????????????????????????????????????????????? | | ?????????????????????????????????????????????????? | | ?????????????????????????????????????????????????? | | ?????????????????????????????????????????????????? | | ?????????????????????????????????????????????????? | | ?????????????????????????????????????????????????? | +----------------------------------------------------+ Best States ------------- Heat Dissipation 25 Energy Generation 10 Energy Capacity 250 Matter Stores 300 Matter Capacity 300 Sight Range 16 Terrain Scan Density 10 Evasion (%) 55 Item Schematics ----------------- None Robot Schematics ------------------ None Fabricated ------------ Nothing Repaired ---------- Nothing Alien Tech Used ----------------- None Achievements -------------- None Challenges ------------ None Game ------ Seed GreatGrapheneBuckler Manual? 0 Play Time 00:05:21 Cumulative 42.6 hours Start 2025.07.01 @ 19:00:12 End 2025.07.01 @ 19:05:06 Sessions 1 Manual Loads 0 Difficulty Rogue Special Mode None Game No. 49 Rogue 49 Adventurer 0 Explorer 0 Win Type - Total 0 Types 0/0/0/0/0/0/0/0/0/0 Lore% 15 Gallery% 32 Achievement% 23 Wizard Run 0 Options --------- Layout 1 ASCII 0 Keyboard 0 Movement Mouse Keybinds 0 Fullscreen 2 Font 48/Smallcaps Map View 50x35 Zoom Use 0% Tactical HUD 1 Map Filters NONE Filters NONE Steam 0 RUN: eda71088-5a99-412f-862f-b3d3f83048d2